[Event "GEO-ch 1st League 2021"]
[Site "Tbilisi"]
[Date "2021.03.30"]
[Round "2.8"]
[White "Elashvili, Giorgi"]
[Black "Morchiashvili, Bachana"]
[Result "0-1"]
[ECO "A05"]
[WhiteElo "1857"]
[BlackElo "2313"]
[Annotator "NA"]
[PlyCount "102"]
[EventDate "2021.03.29"]
[EventType "swiss"]
[EventCountry "GEO"]
[SourceTitle "playchess.com"]
[Source "ChessBase"]
[SourceQuality "1"]
[TimeControl "5400+30"]

1. Nf3 {[%emt 0:00:00]} Nf6 {[%emt 0:00:00]} 2. g3 {[%emt 0:00:15]} g6 {[%emt 0:00:00]} 3. b3 {[%emt 0:00:10]} Bg7 {[%emt 0:00:00]} 4. Bb2 {[%emt 0:00:13]} O-O {[%emt 0:00:00]} 5. Bg2 {[%emt 0:01:01]} d5 {[%emt 0:01:33]} 6. O-O {[%emt 0:07:13]} c5 {[%emt 0:00:26]} 7. c4 {[%emt 0:03:21]} d4 {[%emt 0:10:48]} 8. b4 {[%emt 0:12:42]} Re8 {[%emt 0:03:20]} 9. bxc5 {[%emt 0:23:29]} e5 {[%emt 0:00:22]} 10. e3 {[%emt 0:02:37]} Nc6 {[%emt 0:03:34]} 11. Re1 $15 {[%emt 0:16:27]} Be6 {[%emt 0:14:57]} 12. d3 {[%emt 0:07:20]} Nd7 {[%emt 0:19:59]} 13. exd4 {[%emt 0:00:26]} exd4 {[%emt 0:00:12]} 14. Nbd2 {[%emt 0:03:24]} Nxc5 {[%emt 0:02:43]} 15. Nb3 {[%emt 0:05:12]} Na4 {[%emt 0:02:42]} 16. Qd2 {[%emt 0:05:15]} h6 {[%emt 0:04:25]} 17. Re4 {[%emt 0:06:44]} Nc3 {[%emt 0:07:07]} 18. Ree1 {[%emt 0:00:39]} Qf6 {[%emt 0:04:53]} 19. Nh4 {[%emt 0:02:25]} g5 {[%emt 0:01:35]} 20. Nf3 {[%emt 0:00:31]} Bg4 {[%emt 0:00:35]} 21. Nfxd4 {[%emt 0:00:34]} Nxd4 {[%emt 0:00:49]} 22. Qxc3 {[%emt 0:00:29]} Nxb3 {[%emt 0:04:43]} 23. Qxf6 {[%emt 0:00:14]} Bxf6 {[%emt 0:00:03]} 24. Bxf6 {[%emt 0:00:38]} Nxa1 {[%emt 0:00:04]} 25. Rxa1 {[%emt 0:00:09]} Re6 {[%emt 0:01:30]} 26. Bc3 {[%emt 0:00:56]} Rd8 {[%emt 0:00:40]} 27. Be4 {[%emt 0:00:33]} Be2 {[%emt 0:04:48]} 28. Bd5 {[%emt 0:00:30]} Ra6 {[%emt 0:01:26]} 29. a4 {[%emt 0:00:29]} g4 {[%emt 0:02:51]} 30. Bxb7 {[%emt 0:00:27]} Rad6 {[%emt 0:00:38]} 31. Ba5 {[%emt 0:00:35]} Re8 {[%emt 0:01:02]} 32. Bd5 {[%emt 0:00:18]} Bf3 {[%emt 0:03:33]} 33. Bc7 {[%emt 0:00:41]} Rd7 {[%emt 0:00:31]} 34. Bf4 {[%emt 0:00:30]} Bxd5 {[%emt 0:01:36]} 35. cxd5 {[%emt 0:00:01]} Rxd5 {[%emt 0:00:04]} 36. Be3 {[%emt 0:00:44]} a5 {[%emt 0:00:50]} 37. Ra3 {[%emt 0:00:41]} h5 {[%emt 0:00:47]} 38. Rc3 {[%emt 0:00:33]} Red8 {[%emt 0:00:29]} 39. d4 {[%emt 0:00:10]} Rb8 {[%emt 0:00:11]} 40. Ra3 {[%emt 0:00:53]} Rb4 {[%emt 0:00:14]} 41. Kf1 {[%emt 0:00:28]} Kh7 {[%emt 0:00:58]} 42. Ke2 {[%emt 0:00:30]} Kg6 {[%emt 0:00:03]} 43. Kd3 {[%emt 0:00:29]} Kf5 {[%emt 0:00:20]} 44. Ra1 {[%emt 0:00:13]} Ke6 {[%emt 0:00:30]} 45. Ke4 {[%emt 0:00:48]} f5+ {[%emt 0:00:13]} 46. Kd3 {[%emt 0:00:30]} h4 {[%emt 0:00:49]} 47. Kc3 {[%emt 0:00:30]} h3 {[%emt 0:00:09]} 48. Kd3 {[%emt 0:00:24]} Rd7 {[%emt 0:00:07]} 49. Kc3 {[%emt 0:00:37]} Kd5 {[%emt 0:00:11]} 50. Kd3 {[%emt 0:00:30]} Rc7 {[%emt 0:00:05]} 51. Ra3 {[%emt 0:00:31]} Rcc4 {[%emt 0:00:12]} 0-1

[Event "GEO-ch 1st League 2021"]
[Site "Tbilisi"]
[Date "2021.03.30"]
[Round "2.9"]
[White "Tsanatsqenishvili, Alexandre"]
[Black "Lomsadze, Davit"]
[Result "0-1"]
[ECO "B09"]
[WhiteElo "1702"]
[BlackElo "2303"]
[Annotator "NA"]
[PlyCount "90"]
[EventDate "2021.03.29"]
[EventType "swiss"]
[EventCountry "GEO"]
[SourceTitle "playchess.com"]
[Source "ChessBase"]
[SourceQuality "1"]
[TimeControl "5400+30"]

1. e4 {[%emt 0:00:00]} g6 {[%emt 0:00:00]} 2. d4 {[%emt 0:00:00]} Bg7 {[%emt 0:00:00]} 3. Nc3 {[%emt 0:00:00]} d6 {[%emt 0:00:00]} 4. f4 {[%emt 0:00:03]} Nc6 {[%emt 0:02:36]} 5. Be3 {[%emt 0:01:14]} Nf6 {[%emt 0:03:49]} 6. Nf3 {[%emt 0:04:01]} O-O {[%emt 0:04:55]} 7. e5 {[%emt 0:01:57] 7.Qd2 is becoming the main line.} Ng4 {[%emt 0:03:54]} 8. Bg1 {[%emt 0:00:52]} d5 {[%emt 0:02:06]} ({Black should play} 8... dxe5 $14 9. dxe5 Be6) 9. h3 {[%emt 0:04:53]} Nh6 {[%emt 0:00:02]} 10. g4 {[%emt 0:02:49]} f6 {[%emt 0:00:28]} 11. Bg2 {[%emt 0:02:14]} fxe5 {[%emt 0:10:28]} 12. fxe5 {[%emt 0:00:05]} e6 {[%emt 0:00:21]} 13. Be3 {[%emt 0:01:01] [#]} Nf7 $146 {[%emt 0:01:16]} ({Predecessor:} 13... Na5 14. Bg5 Qe8 15. O-O Nf7 16. Bf6 Bxf6 17. exf6 Nc4 18. Qc1 Qd8 19. b3 Ncd6 {1-0 (39) Cvetanovic,U (2295)-Colovic,D (2296) Kragujevac 2018}) 14. Ne2 {[%emt 0:03:14]} Na5 {[%emt 0:05:07]} 15. b3 {[%emt 0:08:40]} c5 {[%emt 0:00:07]} 16. c3 {[%emt 0:00:02]} Nc6 {[%emt 0:00:29]} 17. Qd3 {[%emt 0:12:31]} Bd7 {[%emt 0:03:20]} 18. h4 {[%emt 0:03:09]} (18. O-O $14) 18... cxd4 {[%emt 0:00:51]} 19. cxd4 $11 {[%emt 0:00:06]} Rc8 {[%emt 0:00:55]} (19... Nh6 $11 20. Bxh6 Bxh6) 20. a3 {[%emt 0:15:57]} Qa5+ {[%emt 0:08:08]} 21. Qd2 {[%emt 0:05:37]} Qb5 {[%emt 0:04:29]} 22. b4 {[%emt 0:06:16]} Nfxe5 {[%emt 0:02:58]} 23. dxe5 {[%emt 0:02:32]} Rxf3 {[%emt 0:01:46]} 24. Bxf3 {[%emt 0:05:21]} Nxe5 {[%emt 0:00:02]} 25. Kf2 {[%emt 0:08:08]} Rf8 {[%emt 0:00:47]} 26. Nd4 {[%emt 0:00:18]} Nxf3 {[%emt 0:00:18]} 27. Nxf3 {[%emt 0:01:15]} d4 {[%emt 0:03:03]} 28. Rae1 {[%emt 0:07:58]} Bc6 {[%emt 0:03:17]} 29. Rh3 {[%emt 0:00:42]} Qd5 {[%emt 0:02:01]} 30. Qd1 {[%emt 0:00:32]} dxe3+ {[%emt 0:00:55]} 31. Kxe3 {[%emt 0:00:02]} Qe4+ {[%emt 0:02:25]} 32. Kf2 {[%emt 0:00:06]} Qxg4 {[%emt 0:00:27]} 33. Rg3 {[%emt 0:01:22]} Qxh4 {[%emt 0:01:32]} 34. Rh1 {[%emt 0:00:57]} Rxf3+ {[%emt 0:00:57]} 35. Qxf3 {[%emt 0:01:18]} Bd4+ {[%emt 0:00:27]} 36. Kf1 {[%emt 0:01:22]} Qxh1+ {[%emt 0:00:05]} 37. Qxh1 {[%emt 0:00:01]} Bxh1 {[%emt 0:00:02]} 38. Rh3 {[%emt 0:00:17]} Bc6 {[%emt 0:00:18]} 39. Ke2 {[%emt 0:00:10]} e5 {[%emt 0:00:04]} 40. Kd3 {[%emt 0:00:05]} Kg7 {[%emt 0:00:09]} 41. Kc4 {[%emt 0:00:02]} a6 {[%emt 0:00:09]} 42. Kd3 {[%emt 0:00:26]} g5 {[%emt 0:00:07]} 43. Rh2 {[%emt 0:00:45]} Kg6 {[%emt 0:00:03]} 44. Rc2 {[%emt 0:00:08]} g4 {[%emt 0:00:08]} 45. a4 {[%emt 0:00:25]} g3 {[%emt 0:37:09]} 0-1

[Event "GEO-ch 1st League 2021"]
[Site "Tbilisi"]
[Date "2021.03.30"]
[Round "2.10"]
[White "Petriashvili, Nikoloz"]
[Black "Kachkachishvili, Lasha"]
[Result "1-0"]
[ECO "E12"]
[WhiteElo "2425"]
[BlackElo "1681"]
[Annotator "NA"]
[PlyCount "57"]
[EventDate "2021.03.29"]
[EventType "swiss"]
[EventCountry "GEO"]
[SourceTitle "playchess.com"]
[Source "ChessBase"]
[SourceQuality "1"]
[TimeControl "5400+30"]

{[%evp 8,35,8,7,32767,0,0,32767,17,-12,-3,-10,0,0,0,-27,-19,-6,0,-14,78,53,85,62,115,102,32767,127,140,141]} 1. d4 {[%emt 0:00:00]} Nf6 {[%emt 0:00:00]} 2. c4 {[%emt 0:00:00]} e6 {[%emt 0:00:18]} 3. Nf3 {[%emt 0:00:00]} b6 {[%emt 0:00:20]} 4. a3 {[%emt 0:01:48]} Bb7 {[%emt 0:00:25]} 5. Nc3 {[%emt 0:00:06]} d5 {[%emt 0:00:06]} 6. cxd5 {[%emt 0:01:10]} Nxd5 {[%emt 0:01:08]} 7. e3 {[%emt 0:00:08]} Nd7 {[%emt 0:04:59]} 8. Qa4 {[%emt 0:02:51]} Nxc3 {[%emt 0:02:45]} 9. bxc3 {[%emt 0:00:02]} Bd6 {[%emt 0:01:04]} 10. Bd3 {[%emt 0:04:48]} O-O {[%emt 0:01:21]} 11. Qc2 {[%emt 0:00:16]} h6 {[%emt 0:01:29]} 12. e4 {[%emt 0:16:07]} e5 {[%emt 0:01:58]} 13. O-O {[%emt 0:00:03]} c5 {[%emt 0:10:04]} (13... Rc8 $11) 14. d5 {[%emt 0:00:25]} f5 {[%emt 0:09:47]} 15. Nd2 {[%emt 0:02:02]} fxe4 {[%emt 0:04:03]} 16. Nxe4 {[%emt 0:00:57]} Nf6 {[%emt 0:00:13]} 17. c4 {[%emt 0:01:10]} b5 {[%emt 0:07:02]} 18. cxb5 $16 {[%emt 0:01:38]} Bxd5 {[%emt 0:09:46]} 19. Bc4 {[%emt 0:04:43]} Bxc4 {[%emt 0:00:15]} 20. Qxc4+ {[%emt 0:00:03]} Kh8 {[%emt 0:00:01]} 21. Nxd6 {[%emt 0:01:24]} Qxd6 {[%emt 0:00:08]} 22. Be3 {[%emt 0:00:02]} Rac8 {[%emt 0:03:06]} 23. Rfd1 {[%emt 0:00:44]} Qc7 {[%emt 0:01:09]} 24. Rac1 {[%emt 0:06:34]} Qb7 {[%emt 0:06:53]} 25. a4 {[%emt 0:03:18]} e4 {[%emt 0:05:19]} 26. Bxc5 {[%emt 0:02:48]} Ng4 {[%emt 0:02:03]} 27. Qe2 {[%emt 0:12:49]} Rxc5 {[%emt 0:04:28]} 28. Rxc5 {[%emt 0:00:15]} Qb6 {[%emt 0:01:24]} 29. Rc6 {[%emt 0:02:52]} 1-0

[Event "GEO-ch 1st League 2021"]
[Site "Tbilisi"]
[Date "2021.03.30"]
[Round "2.11"]
[White "Chkhaidze, Nikoloz"]
[Black "Giorgadze, Giorgi"]
[Result "1-0"]
[ECO "D46"]
[WhiteElo "2307"]
[BlackElo "2584"]
[Annotator "ChessBase"]
[PlyCount "51"]
[EventDate "2021.03.29"]
[EventType "swiss"]
[EventCountry "GEO"]
[SourceTitle "playchess.com"]
[Source "ChessBase"]
[SourceQuality "1"]
[TimeControl "5400+30"]

1. d4 {[%emt 0:00:00]} d5 {[%emt 0:00:00]} 2. c4 {[%emt 0:00:00]} c6 {[%emt 0:00:00]} 3. Nc3 {[%emt 0:00:00]} Nf6 {[%emt 0:00:00]} 4. e3 {[%emt 0:00:00]} e6 {[%emt 0:00:19]} 5. Nf3 {[%emt 0:00:00]} Nbd7 {[%emt 0:00:29]} 6. Qc2 {[%emt 0:00:00]} Be7 {[%emt 0:03:56]} 7. Bd3 {[%emt 0:02:00]} dxc4 {[%emt 0:00:35]} 8. Bxc4 {[%emt 0:00:01]} O-O {[%emt 0:00:18]} 9. O-O {[%emt 0:00:18]} b5 {[%emt 0:01:53]} 10. Bd3 {[%emt 0:00:02]} a6 {[%emt 0:00:24]} 11. e4 {[%emt 0:00:27]} h6 {[%emt 0:01:26]} 12. Qe2 {[%emt 0:09:53]} e5 {[%emt 0:26:24]} 13. dxe5 {[%emt 0:04:16]} Ng4 {[%emt 0:00:42]} 14. Bf4 {[%emt 0:00:30]} Qc7 {[%emt 0:01:23]} 15. Rac1 {[%emt 0:00:28]} Bc5 {[%emt 0:09:22]} 16. b4 {[%emt 0:02:15]} Ba7 {[%emt 0:10:59]} 17. Nd5 {[%emt 0:00:40]} Qd8 {[%emt 0:02:31]} 18. Rxc6 {[%emt 0:00:27]} Bb7 {[%emt 0:00:24]} 19. Rd6 {[%emt 0:16:08]} Bb8 {[%emt 0:01:52]} 20. Rxd7 {[%emt 0:00:58]} Qxd7 {[%emt 0:00:08]} 21. h3 {[%emt 0:00:55]} Bxd5 {[%emt 0:09:45]} 22. exd5 {[%emt 0:00:42]} Nxe5 {[%emt 0:02:18]} 23. Nxe5 {[%emt 0:02:02]} Bxe5 {[%emt 0:01:10]} 24. Qxe5 {[%emt 0:00:24]} Rfe8 {[%emt 0:01:28]} 25. Qd4 {[%emt 0:00:44]} Rad8 {[%emt 0:01:18]} 26. d6 {[%emt 0:01:09]} 1-0

[Event "GEO-ch 1st League 2021"]
[Site "Tbilisi"]
[Date "2021.03.30"]
[Round "2.12"]
[White "Volkov, Nika"]
[Black "Safarov, Deniel"]
[Result "1-0"]
[ECO "D02"]
[WhiteElo "2084"]
[BlackElo "1720"]
[Annotator "NA"]
[PlyCount "87"]
[EventDate "2021.03.29"]
[EventType "swiss"]
[EventCountry "GEO"]
[SourceTitle "playchess.com"]
[Source "ChessBase"]
[SourceQuality "1"]
[TimeControl "5400+30"]

1. d4 {[%emt 0:00:00]} Nf6 {[%emt 0:00:00]} 2. Nf3 {[%emt 0:00:00]} e6 {[%emt 0:00:00]} 3. Bf4 {[%emt 0:05:15]} d5 {[%emt 0:01:03]} 4. e3 {[%emt 0:00:07]} c5 {[%emt 0:01:18]} 5. c3 {[%emt 0:00:56]} Nc6 {[%emt 0:01:34]} 6. Nbd2 {[%emt 0:00:12]} Bd6 {[%emt 0:02:11]} 7. Bg5 {[%emt 0:01:07]} O-O {[%emt 0:03:55]} 8. Bd3 {[%emt 0:00:18]} h6 {[%emt 0:01:55]} 9. Bh4 {[%emt 0:00:07]} Qe7 {[%emt 0:06:00]} 10. dxc5 {[%emt 0:07:50]} Bxc5 {[%emt 0:01:55]} 11. e4 {[%emt 0:00:03]} g5 {[%emt 0:19:24]} 12. Bg3 {[%emt 0:00:56]} dxe4 {[%emt 0:11:36]} 13. Nxe4 {[%emt 0:00:11]} Nxe4 {[%emt 0:01:16]} 14. Bxe4 {[%emt 0:00:03]} f5 {[%emt 0:01:48]} 15. Bxc6 {[%emt 0:03:19]} bxc6 {[%emt 0:00:13]} 16. b4 $15 {[%emt 0:10:19]} ({Better is} 16. Be5 $1 $11) 16... Bxb4 {[%emt 0:07:58]} 17. cxb4 {[%emt 0:02:04]} Qxb4+ {[%emt 0:00:29]} 18. Qd2 {[%emt 0:00:26]} Qxd2+ {[%emt 0:00:39]} 19. Nxd2 {[%emt 0:00:29]} f4 {[%emt 0:00:02]} 20. f3 {[%emt 0:00:17]} fxg3 {[%emt 0:00:07]} 21. hxg3 {[%emt 0:00:02]} Kg7 {[%emt 0:01:40]} 22. Rc1 {[%emt 0:01:19]} Rb8 {[%emt 0:10:48]} 23. Nb3 {[%emt 0:03:56]} a5 {[%emt 0:08:43]} 24. Rc4 {[%emt 0:03:00]} Ba6 {[%emt 0:05:42]} 25. Rxc6 {[%emt 0:01:20]} a4 {[%emt 0:00:21]} 26. Nd2 {[%emt 0:06:41]} Rfc8 {[%emt 0:01:41]} 27. Rxc8 {[%emt 0:00:02]} Rxc8 {[%emt 0:00:06]} 28. Kd1 {[%emt 0:00:24]} Bc4 {[%emt 0:04:34]} 29. Nxc4 {[%emt 0:00:54]} Rxc4 {[%emt 0:00:08]} 30. Kd2 {[%emt 0:00:01]} Kg6 {[%emt 0:04:35]} 31. Rb1 {[%emt 0:00:19]} e5 {[%emt 0:01:45]} 32. Rb6+ {[%emt 0:00:40]} Kh5 {[%emt 0:00:51]} 33. a3 {[%emt 0:02:31]} Rd4+ {[%emt 0:01:26]} 34. Kc3 {[%emt 0:00:02]} Rd1 {[%emt 0:00:40]} 35. Rb2 {[%emt 0:00:02]} g4 {[%emt 0:00:22]} 36. Re2 {[%emt 0:00:02]} gxf3 {[%emt 0:00:16]} 37. gxf3 {[%emt 0:00:09]} Rd5 {[%emt 0:00:18]} 38. Re4 {[%emt 0:00:26]} Kg5 {[%emt 0:00:43]} 39. Rxe5+ {[%emt 0:01:20]} Rxe5 {[%emt 0:00:04]} 40. f4+ {[%emt 0:00:02]} Kf5 {[%emt 0:00:01]} 41. fxe5 {[%emt 0:00:01]} Kxe5 {[%emt 0:00:10]} 42. Kb4 {[%emt 0:00:05]} Kf5 {[%emt 0:00:17]} 43. Kxa4 {[%emt 0:00:06]} Kg4 {[%emt 0:00:03]} 44. Kb4 {[%emt 0:00:04]} 1-0

[Event "GEO-ch 1st League 2021"]
[Site "Tbilisi"]
[Date "2021.03.31"]
[Round "3.1"]
[White "Tutisani, Noe"]
[Black "Nigalidze, Gaioz"]
[Result "1/2-1/2"]
[ECO "B87"]
[WhiteElo "2427"]
[BlackElo "2480"]
[Annotator "ChessBase"]
[PlyCount "61"]
[EventDate "2021.03.29"]
[EventType "swiss"]
[EventCountry "GEO"]
[SourceTitle "playchess.com"]
[Source "ChessBase"]
[SourceQuality "1"]
[TimeControl "5400+30"]

1. e4 {[%emt 0:00:00]} c5 {[%emt 0:00:00]} 2. Nf3 {[%emt 0:00:00]} d6 {[%emt 0:00:00]} 3. d4 {[%emt 0:00:00]} cxd4 {[%emt 0:00:00]} 4. Nxd4 {[%emt 0:00:00]} Nf6 {[%emt 0:00:00]} 5. Nc3 {[%emt 0:00:00]} a6 {[%emt 0:00:00]} 6. Bc4 {[%emt 0:00:00]} e6 {[%emt 0:00:00]} 7. Bb3 {[%emt 0:00:00]} b5 {[%emt 0:00:14]} 8. Qe2 {[%emt 0:00:12]} Qb6 {[%emt 0:00:50]} 9. Be3 {[%emt 0:01:16]} Qb7 {[%emt 0:00:05]} 10. Bg5 {[%emt 0:05:20]} b4 {[%emt 0:13:33]} 11. Nd5 {[%emt 0:00:13]} exd5 {[%emt 0:01:51]} 12. Bxf6 {[%emt 0:00:10]} gxf6 {[%emt 0:03:28]} 13. Bxd5 {[%emt 0:00:41]} Qb6 {[%emt 0:02:19]} 14. O-O-O {[%emt 0:02:04]} Ra7 {[%emt 0:03:27]} 15. Qh5 {[%emt 0:02:25]} Rc7 {[%emt 0:14:20]} 16. Rhe1 {[%emt 0:02:45]} Rg8 {[%emt 0:06:46]} 17. Qxh7 {[%emt 0:05:34]} Rg7 {[%emt 0:01:18]} 18. Qh8 {[%emt 0:01:59]} Qc5 {[%emt 0:03:29]} 19. Rd2 {[%emt 0:05:37]} Re7 {[%emt 0:01:01]} 20. Nb3 {[%emt 0:07:28]} Qb6 {[%emt 0:01:28]} 21. f4 {[%emt 0:02:22]} Nc6 {[%emt 0:05:38]} 22. Red1 {[%emt 0:01:52]} Rc7 {[%emt 0:05:47]} 23. Kb1 {[%emt 0:07:38]} Bg4 {[%emt 0:04:51]} 24. Re1 {[%emt 0:02:46]} Re7 {[%emt 0:00:23]} 25. h4 {[%emt 0:11:38]} Rg6 {[%emt 0:03:16]} 26. Rh1 {[%emt 0:05:53]} f5 {[%emt 0:02:20]} 27. Qh7 {[%emt 0:08:54]} Rg7 {[%emt 0:01:12]} 28. Qh6 {[%emt 0:00:05]} Rg6 {[%emt 0:01:56]} 29. Qh7 {[%emt 0:00:05]} Rg7 {[%emt 0:00:05]} 30. Qh6 {[%emt 0:00:02]} Rg6 {[%emt 0:00:06]} 31. Qh7 {[%emt 0:00:02]} 1/2-1/2

[Event "GEO-ch 1st League 2021"]
[Site "Tbilisi"]
[Date "2021.03.31"]
[Round "3.2"]
[White "Lortkipanidze, Nodar"]
[Black "Azaladze, Shota"]
[Result "1/2-1/2"]
[ECO "B22"]
[WhiteElo "2416"]
[BlackElo "2439"]
[Annotator "NA"]
[PlyCount "179"]
[EventDate "2021.03.29"]
[EventType "swiss"]
[EventCountry "GEO"]
[SourceTitle "playchess.com"]
[Source "ChessBase"]
[SourceQuality "1"]
[TimeControl "5400+30"]

1. e4 {[%emt 0:00:00]} c5 {[%emt 0:00:00]} 2. c3 {[%emt 0:00:00]} Nf6 {[%emt 0:00:15]} 3. e5 {[%emt 0:00:01]} Nd5 {[%emt 0:00:03]} 4. Nf3 {[%emt 0:00:05]} Nc6 {[%emt 0:00:15]} 5. d4 {[%emt 0:00:06]} cxd4 {[%emt 0:00:19]} 6. cxd4 {[%emt 0:00:06]} d6 {[%emt 0:00:06]} 7. Bc4 {[%emt 0:00:10]} Nb6 {[%emt 0:00:15]} 8. Bb5 {[%emt 0:00:05]} Bd7 {[%emt 0:06:08]} 9. Nc3 {[%emt 0:01:37]} dxe5 {[%emt 0:03:10]} 10. dxe5 {[%emt 0:01:15]} g6 {[%emt 0:00:22]} 11. a4 {[%emt 0:04:57]} a6 {[%emt 0:15:27]} 12. Be2 {[%emt 0:00:05]} Bg4 {[%emt 0:03:21]} 13. Be3 {[%emt 0:02:19]} Qxd1+ {[%emt 0:02:40]} 14. Rxd1 {[%emt 0:00:05]} Nd7 {[%emt 0:00:07]} 15. h3 {[%emt 0:00:44]} Bxf3 {[%emt 0:14:48]} 16. e6 {[%emt 0:00:25]} fxe6 {[%emt 0:00:11]} 17. Bxf3 {[%emt 0:00:08]} Nde5 {[%emt 0:01:13]} 18. Be2 {[%emt 0:06:40]} Bg7 {[%emt 0:01:47]} 19. O-O {[%emt 0:03:12]} Rd8 {[%emt 0:01:54]} 20. Ne4 {[%emt 0:03:31]} Nf7 {[%emt 0:09:08]} 21. Nc5 {[%emt 0:01:43]} Rxd1 $1 {[%emt 0:01:53]} 22. Rxd1 {[%emt 0:00:03]} Nd6 {[%emt 0:00:15]} 23. Bf3 {[%emt 0:04:37]} Kf7 {[%emt 0:02:32]} 24. b3 {[%emt 0:07:59] Remove Defender} (24. Nxb7 $5 Nxb7 25. Bxc6 $11) 24... Rc8 {[%emt 0:01:23]} 25. g4 {[%emt 0:12:36]} Rc7 {[%emt 0:07:23]} 26. Kg2 {[%emt 0:01:36]} Nb4 {[%emt 0:01:35]} 27. Ne4 {[%emt 0:05:10]} Nxe4 {[%emt 0:00:19]} 28. Bxe4 {[%emt 0:00:04]} Nd5 {[%emt 0:00:18]} 29. Bxd5 {[%emt 0:00:22]} exd5 {[%emt 0:00:02]} 30. Rxd5 {[%emt 0:00:06]} Rc3 {[%emt 0:01:42]} 31. b4 {[%emt 0:00:16]} Ke6 {[%emt 0:06:56]} 32. Rd8 $11 {[%emt 0:02:17]} Rc4 {[%emt 0:00:23]} 33. b5 {[%emt 0:04:21]} Rxa4 {[%emt 0:00:30]} 34. Rb8 {[%emt 0:00:05]} axb5 {[%emt 0:01:52]} 35. Rxb7 {[%emt 0:00:04]} b4 {[%emt 0:03:21]} 36. Bc5 {[%emt 0:00:18]} Bc3 {[%emt 0:00:02]} 37. Rxe7+ {[%emt 0:00:31]} Kd5 {[%emt 0:00:04]} 38. Bxb4 {[%emt 0:00:04]} Rxb4 {[%emt 0:00:09]} 39. Rxh7 {[%emt 0:00:05]} Ke6 {[%emt 0:00:26]} 40. Rc7 {[%emt 0:00:25]} Be5 {[%emt 0:00:32]} 41. Rc2 {[%emt 0:00:09]} Bd6 {[%emt 0:01:52]} 42. Re2+ {[%emt 0:01:51]} Kf7 {[%emt 0:00:06]} 43. Rd2 {[%emt 0:00:11]} Be7 {[%emt 0:00:29]} 44. Re2 {[%emt 0:00:30]} Bh4 {[%emt 0:00:07]} 45. Rc2 {[%emt 0:00:22]} Kf6 {[%emt 0:04:34]} 46. Re2 {[%emt 0:01:12]} Rf4 {[%emt 0:01:06]} 47. Kg1 {[%emt 0:00:30]} Kg5 {[%emt 0:00:27]} 48. Re5+ {[%emt 0:00:08]} Kh6 {[%emt 0:00:10]} 49. Re2 {[%emt 0:00:03]} Rf7 {[%emt 0:00:35]} 50. Kg2 {[%emt 0:00:16]} Kg5 {[%emt 0:01:43]} 51. Ra2 {[%emt 0:00:21]} Kf4 {[%emt 0:00:44]} 52. Ra6 {[%emt 0:00:39]} g5 {[%emt 0:06:14]} 53. Ra4+ {[%emt 0:03:22]} Ke5 {[%emt 0:00:05]} 54. Ra5+ {[%emt 0:00:03]} Kd6 {[%emt 0:01:40]} 55. Ra2 {[%emt 0:00:24]} Rf4 {[%emt 0:00:26]} 56. Rb2 {[%emt 0:00:21]} Kd5 {[%emt 0:00:07]} 57. Ra2 {[%emt 0:00:06]} Rf8 {[%emt 0:00:44]} 58. Rb2 {[%emt 0:00:06]} Kc4 {[%emt 0:00:07]} 59. Ra2 {[%emt 0:00:04]} Kb3 {[%emt 0:00:59]} 60. Re2 {[%emt 0:00:06]} Kc3 {[%emt 0:00:09]} 61. Ra2 {[%emt 0:00:05]} Re8 {[%emt 0:01:51]} 62. Kf3 {[%emt 0:01:22]} Re1 {[%emt 0:00:24]} 63. Kg2 {[%emt 0:00:14]} Rd1 {[%emt 0:01:13]} 64. Re2 {[%emt 0:03:28]} Rd4 {[%emt 0:00:23]} 65. Ra2 {[%emt 0:00:17]} Kb3 {[%emt 0:00:52]} 66. Re2 {[%emt 0:00:07]} Rd7 {[%emt 0:00:11]} 67. Kf3 {[%emt 0:01:05]} Ra7 {[%emt 0:00:39]} 68. Kg2 {[%emt 0:00:17]} Kc3 {[%emt 0:00:02]} 69. Kf1 {[%emt 0:01:38]} Kd3 {[%emt 0:00:48]} 70. Rb2 {[%emt 0:00:05]} Ra1+ {[%emt 0:00:37]} 71. Kg2 {[%emt 0:00:04]} Re1 {[%emt 0:00:04]} 72. Kf3 {[%emt 0:00:13]} Re8 {[%emt 0:00:20]} 73. Ra2 {[%emt 0:00:04]} Rf8+ {[%emt 0:02:35]} 74. Kg2 {[%emt 0:00:05]} Rf7 {[%emt 0:00:33]} 75. Rb2 {[%emt 0:00:06]} Re7 {[%emt 0:00:06]} 76. Kf3 {[%emt 0:00:04]} Ra7 {[%emt 0:00:03]} 77. Kg2 {[%emt 0:00:04]} Kc3 {[%emt 0:00:56]} 78. Re2 {[%emt 0:00:07]} Kd3 {[%emt 0:00:54]} 79. Rb2 {[%emt 0:00:03]} Ra3 {[%emt 0:00:17]} 80. Kf1 {[%emt 0:00:11]} Ra1+ {[%emt 0:00:56]} 81. Kg2 {[%emt 0:00:06]} Re1 {[%emt 0:00:10]} 82. Kf3 {[%emt 0:00:03]} Rd1 {[%emt 0:00:37]} 83. Kg2 {[%emt 0:00:40]} Rd2 {[%emt 0:00:24]} 84. Rxd2+ {[%emt 0:00:06]} Kxd2 {[%emt 0:00:02]} 85. f4 {[%emt 0:00:06]} gxf4 {[%emt 0:00:05]} 86. Kf3 {[%emt 0:00:03]} Bg5 {[%emt 0:00:04]} 87. h4 {[%emt 0:00:03]} Bxh4 {[%emt 0:00:03]} 88. Kxf4 {[%emt 0:00:03]} Kd3 {[%emt 0:00:03]} 89. g5 {[%emt 0:00:03]} Bxg5+ {[%emt 0:00:02]} 90. Kxg5 {[%emt 0:00:02]} 1/2-1/2